{"text_format":"1","workbook":"xlsx","n_sheets":7,"sheets":["INSTRUCCIONES","DATOS","ENTRADA - SALIDA","CUADRO CONTROL","LISTA DE ALMACENAMIENTO","REGISTRO GENERADOR RESPEL","!"],"not_rendered":{"charts":2,"images":10,"macros":1,"external_links":1,"defined_names":11,"comments":0,"pivot_tables":2},"unopened":[],"bounds":{"document_bytes":16777216,"sheet_cells":100000,"rows_first":2000,"rows_last":500,"rows_between":2000,"halvings":0,"cell_chars":16384,"cell_head_chars":4096},"cells_cut":0,"cells_raw":0,"read":"whole","date_system":"1900"}

{"sheet":"INSTRUCCIONES","index":0,"n_rows":21,"n_cols":8,"rows_kept":21,"cut":false,"hidden":false,"merged":[[0,1,2,1],[0,2,2,5],[2,6,2,7],[4,5,4,7],[6,5,6,7],[14,5,14,7],[18,5,18,7],[16,5,16,7],[20,0,20,8],[8,1,12,1],[9,3,10,3],[8,5,8,7],[9,5,10,7],[11,5,11,7],[12,5,12,7],[15,1,18,1],[15,5,15,7],[17,5,17,7]]}
[null,null,"PROCESO\nSERVICIOS ADMINISTRATIVOS\n\nFORMATO MANEJO DE RESIDUOS ESPECIALES Y/O PELIGROSOS",null,null,null,"F1.P70.SA","2026-02-16"]
[null,null,null,null,null,null,"Versión 2","Pagina 1 de 1"]
[null,null,null,null,null,null,"Clasificación de la Información:\nPÚBLICA"]
[]
[null,"PESTAÑA",null,"No.",null,"INDICACIONES DE DILIGENCIAMIENTO"]
[]
[null,"ENTRADA-SALIDA ESPECIALES Y/O RESPEL",null,1,null,"Se inicia seleccionando del listado desplegable la Sede Regional o Sede de la Dirección General y el lugar del almacenamiento, se debe regitrar las entradas y salidas, indicando: fecha, nombre de residuo, tipo de residuos (diferenciar si es Residuo Especial o Residuo Peligroso), la cantidad de residuos ingresados en el espacio de almacenamiento.\nNota: Para el registro de entrada debe contar con los datos de quien registro la información, para el caso de la salida debe reportar la información de la empresa gestora."]
[]
[null,"CUADRO CONTROL ESPECIALES Y/O RESPEL",null,0,null,"Se inicia seleccionando del listado desplegable la Sede Regional o Sede de la Dirección General en la cual se esta realizando la generación residuos especiales y/o peligrosos, así mismo, indicando la vigencia."]
[null,null,null,1,null,"Para el diligenciamiento de este formato se tomara como insumo la información suministrada en la pestaña \"ENTRADA-SALIDA\".\n\nSe deberá relacionar el nombre del residuo,  tipo de residuo especial o peligroso (debe seleccionar de la lista desplegable), de manera mensual con la cantidad en kilogramos y unidades generadas (en caso de no contar con la cuantificación de unidades colocar cero \"0\").\n\nCANTIDAD DE RESIDUOS ESPECIALES Y PELIGROSOS GENERADOS\n\n\n\n\n\n\n\nEl formato automáticamente sumará el total de generación de residuos durante la  vigencia, así como, el total de todos los residuos generados (resaltado en color verde en la parte inferior del formato en la primera página).\n\n"]
[]
[null,null,null,2,null,"CANTIDAD DE RESIDUOS ESPECIALES Y PELIGROSOS GESTIONADOS\n\n\n\n\n\n\n\nSe deberá relacionar las cantidades en kilogramos y unidades gestionadas ante el gestor ambiental autorizado (en caso de no contar con la cuantificación de unidades colocar cero \"0\").\n\nEl formato automáticamente sumará el total de residuos especiales y/o peligrosos gestionados ante el gestor ambiental durante la  vigencia.\n\n"]
[null,null,null,3,null,"INFORME GENERACIÓN RESIDUOS ESPECIALES y PELIGROSOS\n\nEl gráfico \"GENERACIÓN DE RESIDUOS ESPECIALES Y PELIGROSOS (Kg) - VIGENCIA ACTUAL\", mostrará el comportamiento de la generación de residuos especiales y peligrosos de los doce (12) meses, para visualizar la gráfica de generación deben dirigirse a la parte inferior de la gráfica, en ese espacio encontrarán un botón denominado \"ACTUALIZACIÓN GENERACIÓN DE RESIDUOS\",  dar click en este botón y en la gráfica se visualizará las cantidades por mes y el tipo de residuos.\n\nEl formato automáticamente sumará el total gestionados de la vigencia por residuo, así como, el total de todos los residuos especiales gestionados."]
[]
[null,"LISTA DE CHEQUEO",null,1,null,"Esta pestaña tiene una lista de verificación para el manejo y almacenamiento, relacionando lugar, nombre de la persona que verifica y fecha.\n\nEste formato se deberá aplicar en los espacios donde se almacenen residuos especiales y/o peligrosos indicando con una \"X\" el cumplimiento de cada ítem de la lista de chequeo (Si - NO - N/A).\n\nEn caso de que se requiera incluir una aclaración o recomendación para tener en cuenta en la próxima inspección se deberá diligenciar en la columna \"Observaciones\", igualmente, se deberá anexar registro fotográfico de estos espacios y elementos de almacenamiento."]
[null,"REGISTRO GENERADOR RESPEL",null,1,null,"Esta pestaña de deberá actualizar cada año y se diligencia con la finalidad de determinar el tipo de generador de residuos peligrosos y si se requiere el respectivo registro ante la Autoridad Ambiental competente."]
[null,null,null,2,null,"Inicia seleccionando del listado desplegable la Sede Regional o Sede de la Dirección General en la cual se esta calculando la media móvil de residuos peligrosos, así mismo, indicando la vigencia de la medición."]
[null,null,null,3,null,"Registrar la cantidad GENERADA por mes de residuos peligrosos de acuerdo con las cantidades consolidadas en la pestaña \"CUADRO CONTROL RESPEL\", estos datos se deberá registrar para los doce (12) meses de la última vigencia.\n\nAutomáticamente el formato realizará el cálculo de la media móvil, promediando el mes en medición con los 5 meses anteriores, posteriormente estos 6 promedios resultantes son nuevamente promediados dando con resultado el total de la media móvil."]
[null,null,null,4,null,"Los ítems \"CATEGORIA GENERADOR\" y \"REQUIERE REGISTRO DE GENERADOR DE RESIDUOS PELIGROSOS\" son automáticamente actualizados junto con la grafica que permite evidenciar el comportamiento de las 6 mediciones de la media móvil."]
[]
["¡Antes de imprimir este documento… piense en el medio ambiente!\nCualquier copia impresa de este documento se considera como COPIA NO CONTROLADA."]

{"sheet":"DATOS","index":1,"n_rows":81,"n_cols":5,"rows_kept":81,"cut":false,"hidden":true,"merged":[]}
["NOMBRE DEL RESIDUO ESPECIAL",null,"SEDE",null,"VIGENCIA"]
["Aceite de motor usado",null,"Amazonas",null,2016]
["Aceite de planta eléctrica usado",null,"Antioquia",null,2017]
["Aceite vegetal usado",null,"Arauca",null,2018]
["Aceites para refrigerantes",null,"Atlántico",null,2019]
["Adaptadores AC",null,"Bogotá",null,2020]
["Aires acondicionados",null,"Bolívar",null,2021]
["Audífonos",null,"Boyacá",null,2022]
["Auriculares",null,"Caldas",null,2023]
["Balastros",null,"Caquetá",null,2024]
["Basculas",null,"Casanare",null,2025]
["Baterías plomo - acido",null,"Cauca",null,2026]
["Board (Impresoras, CPU, Portátiles)",null,"Cesar",null,2027]
["Cable para teléfonos-modem",null,"Choco",null,2028]
["Cables para CPU",null,"Córdoba",null,2029]
["Calculadoras Electrónicas",null,"Cundinamarca",null,2030]
["Calefacción eléctrica",null,"Guainía"]
["Cámara web",null,"Guaviare"]
["Cámaras de video",null,"Huila"]
["Cámaras fotográficas",null,"La Guajira"]
["Carcazas y partes de impresoras",null,"Magdalena"]
["Cilindros de gas",null,"Meta"]
["Cinta magnética",null,"Nariño",null,"R Especiales"]
["Congeladores - Neveras",null,"Norte de Santander",null,"R Peligrosos"]
["Conmutadores",null,"Putumayo"]
["Consolas de video",null,"Quindío"]
["Diademas",null,"Risaralda"]
["Disco duro",null,"San Andrés"]
["Disquete",null,"Santander"]
["Electrodomésticos pequeños:  aspiradoras, tostadoras, batidoras, cafeteras",null,"Sede de la Dirección General"]
["Envases de colas y pegantes",null,"Sucre"]
["Envases de disolventes (thinner, acetonas, metanol, cloroformo)",null,"Tolima"]
["Envases de extintor",null,"Valle"]
["Envases de fitofarmacéuticos (insecticidas, raticidas, plaguicidas, herbicidas)",null,"Vaupés"]
["Envases de hidrocarburos (combustible, ACPM, Cilindros de gas)",null,"Vichada"]
["Envases de pinturas y lacas"]
["Equipos de audio"]
["Equipos deportivos (Caminadoras, etc.)"]
["Estabilizadores y sus partes"]
["Estufas"]
["Fax"]
["Fuentes"]
["Herramientas eléctricas (Taladros, pulidoras, etc.)"]
["Impresoras"]
["Instrumentos de vigilancia y control (detectores, reguladores, termostatos, etc.)"]
["Juguetes eléctricos"]
["Láminas de disco duro"]
["Lavadoras"]
["Luminarias LED"]
["Maquinas de escribir Eléctricas"]
["Maquinas expendedoras"]
["Memoria flash"]
["Memoria portátil"]
["Memoria USB"]
["Memorias RAM"]
["Micrófono"]
["Microondas"]
["Monitores"]
["Parlantes"]
["Pilas usadas "]
["Planchas"]
["Procesadores"]
["Ratón o mouse"]
["Reproductores de video (DVD)"]
["Residuos de construcción y demolición - RCD"]
["Residuos de jardinería"]
["Secadores"]
["Tarjeta bluetooh"]
["Tarjeta de Fax Modem"]
["Tarjeta de red"]
["Tarjeta de sonido"]
["Tarjeta inalámbrica"]
["Tarjeta perforada"]
["Teclado"]
["Teléfonos"]
["Televisores "]
["Tóner"]
["Tubos fluorescentes - Luminaria"]
["Unidad de CD"]
["Unidad de DVD"]
["Ventiladores de CPU"]

{"sheet":"ENTRADA - SALIDA","index":2,"n_rows":35,"n_cols":17,"rows_kept":35,"cut":false,"hidden":false,"merged":[[34,1,34,17],[4,3,4,7],[0,1,2,1],[0,2,2,14],[0,16,0,17],[1,16,1,17],[2,15,2,17],[4,10,4,11],[8,10,8,16],[9,10,10,10],[9,11,10,11],[9,16,10,16],[9,13,9,14],[9,15,10,15],[9,12,10,12],[4,12,4,16],[6,12,6,16],[4,1,4,2],[6,1,6,2],[8,1,8,7],[9,1,10,1],[9,5,9,6],[9,7,10,7],[9,2,10,3],[9,4,10,4],[17,2,17,3],[18,2,18,3],[19,2,19,3],[11,2,11,3],[12,2,12,3],[13,2,13,3],[14,2,14,3],[15,2,15,3],[32,2,32,3],[6,3,6,7],[6,10,6,11],[27,2,27,3],[28,2,28,3],[29,2,29,3],[30,2,30,3],[31,2,31,3],[24,2,24,3],[25,2,25,3],[26,2,26,3],[20,2,20,3],[21,2,21,3],[22,2,22,3],[23,2,23,3],[16,2,16,3]]}
[null,null,"PROCESO\nSERVICIOS ADMINISTRATIVOS\n\nFORMATO MANEJO DE RESIDUOS ESPECIALES Y/O PELIGROSOS",null,null,null,null,null,null,null,null,null,null,null,null,"F1.P70.SA","2026-02-16"]
[null,null,null,null,null,null,null,null,null,null,null,null,null,null,null,"Versión 2","Pagina 1 de 1"]
[null,null,null,null,null,null,null,null,null,null,null,null,null,null,null,"Clasificación de la Información:\nPÚBLICA"]
[]
[null,"REGIONAL / SEDE DE LA DIRECCIÓN GENERAL:",null,null,null,null,null,null,null,null,"REGIONAL / SEDE DE LA DIRECCIÓN GENERAL:"]
[]
[null,"ESPACIO DE ALMACENAMIENTO:",null,null,null,null,null,null,null,null,"ESPACIO DE ALMACENAMIENTO:"]
[]
[null,"REGISTRO ENTRADA DE RESIDUOS ESPECIALES Y/O PELIGROSOS",null,null,null,null,null,null,null,null,"REGISTRO SALIDA DE RESIDUOS ESPECIALES Y/O PELIGROSOS"]
[null,"FECHA","NOMBRE DEL RESIDUO",null,"TIPO DE RESIDUOS ESPECIAL O PELIGROSO","CANTIDAD",null,"RESPONSABLE DEL REGISTRO",null,null,"FECHA","NOMBRE DEL RESIDUO","TIPO DE RESIDUOS ESPECIAL O PELIGROSO","CANTIDAD",null,"REPONSABLE DE LA ENTREGA","EMPRESA GESTORA"]
[null,null,null,null,null,"UNIDAD","Kg",null,null,null,null,null,null,"UNIDAD","Kg"]
[]
[]
[]
[]
[]
[]
[]
[]
[]
[]
[]
[]
[]
[]
[]
[]
[]
[]
[]
[]
[]
[]
[]
[null,"¡Antes de imprimir este documento… piense en el medio ambiente!\nCualquier copia impresa de este documento se considera como COPIA NO CONTROLADA."]

{"sheet":"CUADRO CONTROL","index":3,"n_rows":112,"n_cols":68,"rows_kept":112,"cut":false,"hidden":false,"merged":[[7,54,7,55],[4,22,4,29],[7,40,7,41],[7,42,7,43],[4,16,4,21],[7,22,7,23],[7,24,7,25],[7,18,7,19],[29,1,29,2],[7,44,7,45],[7,46,7,47],[7,30,7,31],[7,34,7,35],[7,36,7,37],[7,38,7,39],[7,4,7,5],[7,6,7,7],[7,8,7,9],[7,10,7,11],[7,12,7,13],[7,14,7,15],[7,28,7,29],[7,16,7,17],[7,20,7,21],[31,0,31,29],[31,30,31,56],[31,57,31,67],[0,33,2,51],[0,52,0,53],[0,54,0,55],[0,57,2,58],[0,59,2,65],[1,52,1,53],[1,54,1,55],[2,52,2,55],[0,1,2,4],[4,58,4,66],[0,26,0,27],[0,28,0,29],[0,30,2,32],[0,5,2,25],[7,26,7,27],[26,58,27,59],[29,59,29,60],[2,66,2,67],[1,26,1,27],[1,28,1,29],[2,26,2,29],[4,1,4,5],[4,6,4,15],[6,4,6,29],[6,30,6,55],[7,32,7,33],[7,48,7,49],[7,50,7,51],[7,52,7,53]]}
[null,null,null,null,null,"PROCESO\nSERVICIOS ADMINISTRATIVOS\n\nFORMATO MANEJO DE RESIDUOS ESPECIALES Y/O PELIGROSOS",null,null,null,null,null,null,null,null,null,null,null,null,null,null,null,null,null,null,null,null,"F1.P70.SA",null,"XX/XX/2026",null,null,null,null,"PROCESO\nSERVICIOS ADMINISTRATIVOS\n\nFORMATO MANEJO DE RESIDUOS ESPECIALES Y/O PELIGROSOS",null,null,null,null,null,null,null,null,null,null,null,null,null,null,null,null,null,null,"F1.P70.SA",null,"2026-02-16",null,null,null,null,"PROCESO\nSERVICIOS ADMINISTRATIVOS\n\nFORMATO MANEJO DE RESIDUOS ESPECIALES Y/O PELIGROSOS",null,null,null,null,null,null,"F1.P70.SA","2026-02-16"]
[null,null,null,null,null,null,null,null,null,null,null,null,null,null,null,null,null,null,null,null,null,null,null,null,null,null,"Versión 1",null,"Pagina 1 de 3",null,null,null,null,null,null,null,null,null,null,null,null,null,null,null,null,null,null,null,null,null,null,null,"Versión 2",null,"Pagina 2 de 3",null,null,null,null,null,null,null,null,null,null,null,"Versión 2","Pagina 3 de 3"]
[null,null,null,null,null,null,null,null,null,null,null,null,null,null,null,null,null,null,null,null,null,null,null,null,null,null,"Clasificación de la Información:\nPÚBLICA",null,null,null,null,null,null,null,null,null,null,null,null,null,null,null,null,null,null,null,null,null,null,null,null,null,"Clasificación de la Información:\nPÚBLICA",null,null,null,null,null,null,null,null,null,null,null,null,null,"Clasificación de la Información:\nPÚBLICA"]
[]
[null,"REGIONAL / SEDE DE LA DIRECCIÓN GENERAL:",null,null,null,null,null,null,null,null,null,null,null,null,null,null,"VIGENCIA",null,null,null,null,null,null,null,null,null,null,null,null,null,null,null,null,null,null,null,null,null,null,null,null,null,null,null,null,null,null,null,null,null,null,null,null,null,null,null,null,null,"INFORME GENERACIÓN RESIDUOS ESPECIALES Y PELIGROSOS"]
[]
[null,null,null,null,"CANTIDAD DE RESIDUOS ESPECIALES Y PELIGROSOS GENERADOS",null,null,null,null,null,null,null,null,null,null,null,null,null,null,null,null,null,null,null,null,null,null,null,null,null,"CANTIDAD DE RESIDUOS ESPECIALES Y PELIGROSOS GENERADOS"]
[null,null,null,"TIPO DE RESIDUO ESPECIAL O PELIGROSO","ENERO",null,"FEBRERO",null,"MARZO",null,"ABRIL",null,"MAYO",null,"JUNIO",null,"JULIO",null,"AGOSTO",null,"SEPTIEMBRE",null,"OCTUBRE",null,"NOVIEMBRE",null,"DICIEMBRE",null,"CANTIDAD TOTAL GENERADA",null,"ENERO",null,"FEBRERO",null,"MARZO",null,"ABRIL",null,"MAYO",null,"JUNIO",null,"JULIO",null,"AGOSTO",null,"SEPTIEMBRE",null,"OCTUBRE",null,"NOVIEMBRE",null,"DICIEMBRE",null,"CANTIDAD TOTAL GESTIONADA"]
[null,"No.","NOMBRE DEL RESIDUO","TIPO DE RESIDUO ESPECIAL O PELIGROSO","Enero\nKg","UND","Febrero\nKg","UND","Marzo\nKg","UND","Abril\nKg","UND","Mayo\nKg","UND","Junio\nKg","UND","Julio\nKg","UND","Agosto\nKg","UND","Sep\nKg","UND","Oct\nKg","UND","Nov\nKg","UND","Dic\nKg","UND","Total\nKg","UND","Kg","UND","Kg","UND","Kg","UND","Kg","UND","Kg","UND","Kg","UND","Kg","UND","Kg","UND","Kg","UND","Kg","UND","Kg","UND","Kg","UND","Kg","UND"]
[null,1,null,null,null,null,null,null,null,null,null,null,null,null,null,null,null,null,null,null,null,null,null,null,null,null,null,null,{"$f":"E10+G10+I10+K10+M10+O10+Q10+S10+U10+W10+Y10+AA10","v":0},{"$f":"F10+H10+J10+L10+N10+P10+R10+T10+V10+X10+Z10+AB10","v":0},null,null,null,null,null,null,null,null,null,null,null,null,null,null,null,null,null,null,null,null,null,null,null,null,{"$f":"AE10+AG10+AI10+AK10+AM10+AO10+AQ10+AS10+AU10+AW10+AY10+BA10","v":0},{"$f":"AF10+AH10+AJ10+AL10+AN10+AP10+AR10+AT10+AV10+AX10+AZ10+BB10","v":0}]
[null,2,null,null,null,null,null,null,null,null,null,null,null,null,null,null,null,null,null,null,null,null,null,null,null,null,null,null,{"$f":"E11+G11+I11+K11+M11+O11+Q11+S11+U11+W11+Y11+AA11","v":0},0,null,null,null,null,null,null,null,null,null,null,null,null,null,null,null,null,null,null,null,null,null,null,null,null,0,0]
[null,3,null,null,null,null,null,null,null,null,null,null,null,null,null,null,null,null,null,null,null,null,null,null,null,null,null,null,0,0,null,null,null,null,null,null,null,null,null,null,null,null,null,null,null,null,null,null,null,null,null,null,null,null,0,0]
[null,4,null,null,null,null,null,null,null,null,null,null,null,null,null,null,null,null,null,null,null,null,null,null,null,null,null,null,0,0,null,null,null,null,null,null,null,null,null,null,null,null,null,null,null,null,null,null,null,null,null,null,null,null,0,0]
[null,5,null,null,null,null,null,null,null,null,null,null,null,null,null,null,null,null,null,null,null,null,null,null,null,null,null,null,0,0,null,null,null,null,null,null,null,null,null,null,null,null,null,null,null,null,null,null,null,null,null,null,null,null,0,0]
[null,6,null,null,null,null,null,null,null,null,null,null,null,null,null,null,null,null,null,null,null,null,null,null,null,null,null,null,0,0,null,null,null,null,null,null,null,null,null,null,null,null,null,null,null,null,null,null,null,null,null,null,null,null,0,0]
[null,7,null,null,null,null,null,null,null,null,null,null,null,null,null,null,null,null,null,null,null,null,null,null,null,null,null,null,0,0,null,null,null,null,null,null,null,null,null,null,null,null,null,null,null,null,null,null,null,null,null,null,null,null,0,0]
[null,8,null,null,null,null,null,null,null,null,null,null,null,null,null,null,null,null,null,null,null,null,null,null,null,null,null,null,0,0,null,null,null,null,null,null,null,null,null,null,null,null,null,null,null,null,null,null,null,null,null,null,null,null,0,0]
[null,9,null,null,null,null,null,null,null,null,null,null,null,null,null,null,null,null,null,null,null,null,null,null,null,null,null,null,0,0,null,null,null,null,null,null,null,null,null,null,null,null,null,null,null,null,null,null,null,null,null,null,null,null,0,0]
[null,10,null,null,null,null,null,null,null,null,null,null,null,null,null,null,null,null,null,null,null,null,null,null,null,null,null,null,0,0,null,null,null,null,null,null,null,null,null,null,null,null,null,null,null,null,null,null,null,null,null,null,null,null,0,0]
[null,11,null,null,null,null,null,null,null,null,null,null,null,null,null,null,null,null,null,null,null,null,null,null,null,null,null,null,0,0,null,null,null,null,null,null,null,null,null,null,null,null,null,null,null,null,null,null,null,null,null,null,null,null,0,0]
[null,12,null,null,null,null,null,null,null,null,null,null,null,null,null,null,null,null,null,null,null,null,null,null,null,null,null,null,0,0,null,null,null,null,null,null,null,null,null,null,null,null,null,null,null,null,null,null,null,null,null,null,null,null,0,0]
[null,13,null,null,null,null,null,null,null,null,null,null,null,null,null,null,null,null,null,null,null,null,null,null,null,null,null,null,0,0,null,null,null,null,null,null,null,null,null,null,null,null,null,null,null,null,null,null,null,null,null,null,null,null,0,0]
[null,14,null,null,null,null,null,null,null,null,null,null,null,null,null,null,null,null,null,null,null,null,null,null,null,null,null,null,0,0,null,null,null,null,null,null,null,null,null,null,null,null,null,null,null,null,null,null,null,null,null,null,null,null,0,0]
[null,15,null,null,null,null,null,null,null,null,null,null,null,null,null,null,null,null,null,null,null,null,null,null,null,null,null,null,0,0,null,null,null,null,null,null,null,null,null,null,null,null,null,null,null,null,null,null,null,null,null,null,null,null,0,0]
[null,16,null,null,null,null,null,null,null,null,null,null,null,null,null,null,null,null,null,null,null,null,null,null,null,null,null,null,0,0,null,null,null,null,null,null,null,null,null,null,null,null,null,null,null,null,null,null,null,null,null,null,null,null,0,0]
[null,17,null,null,null,null,null,null,null,null,null,null,null,null,null,null,null,null,null,null,null,null,null,null,null,null,null,null,0,0,null,null,null,null,null,null,null,null,null,null,null,null,null,null,null,null,null,null,null,null,null,null,null,null,0,0]
[null,18,null,null,null,null,null,null,null,null,null,null,null,null,null,null,null,null,null,null,null,null,null,null,null,null,null,null,0,0,null,null,null,null,null,null,null,null,null,null,null,null,null,null,null,null,null,null,null,null,null,null,null,null,0,0,null,null,"GESTIÓN DE RESIDUOS ESPECIALES Y PELIGROSOS DE LA VIGENCIA",null,"Kg",{"$f":"IF(BC30=0,\"0%\",BC30/AC30)","v":"0%"}]
[null,19,null,null,null,null,null,null,null,null,null,null,null,null,null,null,null,null,null,null,null,null,null,null,null,null,null,null,0,0,null,null,null,null,null,null,null,null,null,null,null,null,null,null,null,null,null,null,null,null,null,null,null,null,0,0,null,null,null,null,"UND",{"$f":"IF(BD30=0,\"0%\",BD30/AD30)","v":"0%"}]
[null,20,null,null,null,null,null,null,null,null,null,null,null,null,null,null,null,null,null,null,null,null,null,null,null,null,null,null,0,0,null,null,null,null,null,null,null,null,null,null,null,null,null,null,null,null,null,null,null,null,null,null,null,null,0,0]
[null,"TOTAL RESIDUOS ",null,null,{"$f":"SUM(E10:E29)","v":0},{"$f":"SUM(F10:F29)","v":0},0,0,0,0,0,0,0,0,0,0,0,0,0,0,0,0,0,0,0,0,0,0,{"$f":"SUM(AC10:AC29)","v":0},{"$f":"SUM(AD10:AD29)","v":0},{"$f":"SUM(AE10:AE29)","v":0},{"$f":"SUM(AF10:AF29)","v":0},0,0,0,0,0,0,0,0,0,0,0,0,0,0,0,{"$f":"SUM(AV10:AV29)","v":0},{"$f":"SUM(AW10:AW29)","v":0},0,0,0,0,0,{"$f":"SUM(BC10:BC29)","v":0},{"$f":"SUM(BD10:BD29)","v":0}]
[]
["Antes de imprimir este documento… piense en el medio ambiente!\nCualquier copia impresa de este documento se considera como COPIA NO CONTROLADA.",null,null,null,null,null,null,null,null,null,null,null,null,null,null,null,null,null,null,null,null,null,null,null,null,null,null,null,null,null,"¡Antes de imprimir este documento… piense en el medio ambiente!\nCualquier copia impresa de este documento se considera como COPIA NO CONTROLADA.",null,null,null,null,null,null,null,null,null,null,null,null,null,null,null,null,null,null,null,null,null,null,null,null,null,null,"¡Antes de imprimir este documento… piense en el medio ambiente!\nCualquier copia impresa de este documento se considera como COPIA NO CONTROLADA."]
[]
[]
[]
[]
[]
[]
[]
[]
[]
[]
[]
[]
[]
[]
[]
[]
[]
[]
[]
[]
[]
[]
[]
[]
[]
[]
[]
[]
[]
[]
[]
[]
[]
[]
[]
[]
[]
[]
[]
[]
[]
[]
[]
[]
[]
[]
[]
[]
[]
[]
[]
[]
[]
[]
[]
[]
[]
[]
[]
[]
[]
[]
[]
[]
[]
[]
[]
[null,"Etiquetas de fila"]
[null,"Total Suma de Enero"]
[null,"Total Suma de Febrero"]
[null,"Total Suma de Marzo"]
[null,"Total Suma de Abril"]
[null,"Total Suma de Mayo"]
[null,"Total Suma de Junio\nKg"]
[null,"Total Suma de Julio\nKg"]
[null,"Total Suma de Agosto\nKg"]
[null,"Total Suma de Sep"]
[null,"Total Suma de Oct"]
[null,"Total Suma de Nov"]
[null,"Total Suma de Dic"]

{"sheet":"LISTA DE ALMACENAMIENTO","index":4,"n_rows":32,"n_cols":8,"rows_kept":32,"cut":false,"hidden":false,"merged":[[31,1,31,7],[0,1,2,1],[0,2,2,5],[2,6,2,7],[27,1,27,3],[27,4,27,6],[28,2,28,3],[28,4,28,5],[25,1,25,3],[25,4,25,6],[26,2,26,3],[26,4,26,5],[10,1,10,2],[10,3,10,6],[4,1,4,6],[6,1,6,2],[6,3,6,6],[8,1,8,2],[8,3,8,6],[12,1,12,6],[22,1,22,6],[23,1,23,3],[23,4,23,6],[24,2,24,3],[24,4,24,5],[13,1,14,1],[13,2,14,2],[13,3,13,5],[13,6,14,6]]}
[null,null,"PROCESO\nSERVICIOS ADMINISTRATIVOS\n\nFORMATO MANEJO DE RESIDUOS ESPECIALES Y/O PELIGROSOS",null,null,null,"F1.P70.SA","2026-02-16"]
[null,null,null,null,null,null,"Versión 2","Pagina 1 de 1"]
[null,null,null,null,null,null,"Clasificación de la Información:\nPÚBLICA"]
[]
[null,"LISTA DE CHEQUEO RESIDUOS ESPECIALES Y/O PELIGROSOS"]
[]
[null,"LUGAR:"]
[]
[null,"NOMBRE DE QUIEN VERIFICA:"]
[]
[null,"FECHA:"]
[]
[null,"ALMACENAMIENTO Y MANEJO"]
[null,"No.","Aspecto ","¿Cumple?",null,null,"Observaciones:"]
[null,null,null,"SI","NO","N/A"]
[null,1,"El área de almacenamiento cuenta con señalización adecuada, ventilación, piso de fácil lavado, control de acceso y buenas condiciones locativas. "]
[null,2,"Los residuos están debidamente señalizados y separados de los demás residuos. "]
[null,3,"Los residuos están embalados y rotulados de manera que no representen peligro para la salud y el medio ambiente. "]
[null,4,"El área de almacenamiento de residuos cuenta con señalización adecuada, ventilación, piso de fácil lavado, control de acceso y buenas condiciones locativas. "]
[null,5,"Los elementos utilizados para el almacenamiento se encuentran en buen estado. "]
[null,6,"El Programa de Manejo de Residuos contempla acciones para la prevención, manejo y minimización de residuos especiales. "]
[null,7,"Cuenta con equipos de emergencia disponibles, en buen estado y cercanos (Kit Antiderrames, extintores y botiquin)"]
[null,"REGISTRO FOTOGRÁFICO"]
[]
[null,"LUGAR:",null,null,"LUGAR:"]
[]
[null,"LUGAR:",null,null,"LUGAR:"]
[]
[null,"LUGAR:",null,null,"LUGAR:"]
[]
[]
[null,"¡Antes de imprimir este documento… piense en el medio ambiente!\nCualquier copia impresa de este documento se considera como COPIA NO CONTROLADA."]

{"sheet":"REGISTRO GENERADOR RESPEL","index":5,"n_rows":49,"n_cols":8,"rows_kept":49,"cut":false,"hidden":false,"merged":[[0,1,2,1],[0,2,2,5],[2,6,2,7],[48,1,48,7],[13,5,15,5],[13,6,15,6],[4,1,4,2],[4,4,4,5],[6,1,6,6],[10,5,11,5],[10,6,11,6]]}
[null,null,"PROCESO\nSERVICIOS ADMINISTRATIVOS\n\nFORMATO MANEJO DE RESIDUOS ESPECIALES Y/O PELIGROSOS",null,null,null,"F1.P70.SA","2026-02-16"]
[null,null,null,null,null,null,"Versión 2","Pagina 1 de 1"]
[null,null,null,null,null,null,"Clasificación de la Información:\nPÚBLICA"]
[]
[null,"REGIONAL / SEDE DE LA DIRECCIÓN GENERAL:",null,null,"VIGENCIA:"]
[]
[null,"CÁLCULO MEDIA MÓVIL RESIDUOS PELIGROSOS"]
[]
[null,"MES","CANTIDAD DE RESIDUOS\nKG","MEDIA MOVIL \nKG"]
[null,1]
[null,2,null,null,null,"CATEGORIA GENERADOR",{"$f":"IF(D22<10,\"EXCENTO DE REGISTRO\",IF(AND(D22>=10,D22<100),\"PEQUEÑO\",IF(AND(D22>=100,D22<1000),\"MEDIANO\",IF(D22>=1000,\"GRANDE\",0))))","v":"EXCENTO DE REGISTRO"}]
[null,3]
[null,4]
[null,5,null,null,null,"REQUIERE REGISTRO COMO GENERADOR DE RESIDUOS PELIGROSOS",{"$f":"IF(G11=\"EXCENTO DE REGISTRO\",\"NO\",\"SI\")","v":"NO"}]
[null,6,null,{"$f":"SUM(C10:C15)/6","v":0}]
[null,7,null,0]
[null,8,null,0]
[null,9,null,0]
[null,10,null,0]
[null,11,null,0]
[null,12,null,0]
[null,"TOTAL",{"$f":"SUM(C10:C21)","v":0},{"$f":"AVERAGE(D16:D21)","v":0}]
[]
[]
[]
[]
[]
[]
[]
[]
[]
[]
[]
[]
[]
[]
[]
[]
[]
[]
[]
[]
[]
[]
[]
[]
[]
[]
[null,"¡Antes de imprimir este documento… piense en el medio ambiente!\nCualquier copia impresa de este documento se considera como COPIA NO CONTROLADA."]

{"sheet":"!","index":6,"n_rows":2,"n_cols":13,"rows_kept":2,"cut":false,"hidden":true,"merged":[]}
[null,"ENERO","FEBRERO","MARZO","ABRIL","MAYO","JUNIO","JULIO","AGOSTO","SEPTIEMBRE","OCTUBRE","NOVIEMBRE","DICIEMBRE"]
["TOTAL RESIDUOS ESPECIALES GENERADOS",{"$f":"'CUADRO CONTROL'!E30","v":0},{"$f":"'CUADRO CONTROL'!G30","v":0},{"$f":"'CUADRO CONTROL'!I30","v":0},{"$f":"'CUADRO CONTROL'!K30","v":0},{"$f":"'CUADRO CONTROL'!M30","v":0},{"$f":"'CUADRO CONTROL'!O30","v":0},{"$f":"'CUADRO CONTROL'!Q30","v":0},{"$f":"'CUADRO CONTROL'!S30","v":0},{"$f":"'CUADRO CONTROL'!U30","v":0},{"$f":"'CUADRO CONTROL'!W30","v":0},{"$f":"'CUADRO CONTROL'!Y30","v":0},{"$f":"'CUADRO CONTROL'!AA30","v":0}]